fUST/lending_fUST_20240425
["ID","MTS","AMOUNT","RATE_DAILY","PERIOD"]
[323422621,1713976239938,-500.0,0.00016438,2]
[323422622,1713976239947,-525.44259505,0.00016438,2]
[323422623,1713976239957,-500.0,0.00016438,2]
[323422624,1713976239966,-500.0,0.00016438,2]
[323422625,1713976239975,-500.0,0.00016438,2]
[323422626,1713976239985,-500.0,0.00016438,2]
[323422627,1713976239993,-500.0,0.00016438,2]
[323422628,1713976240002,-201.00090847,0.00016438,2]
[323422629,1713976240012,-500.0,0.00016438,2]
[323422630,1713976240021,-500.0,0.00016438,2]
[323422631,1713976240030,-500.0,0.00016438,2]
[323422632,1713976240039,-500.0,0.00016438,2]
[323422633,1713976240048,-500.0,0.00016438,2]
[323422634,1713976240057,-500.0,0.00016438,2]
[323422635,1713976240066,-500.0,0.00016438,2]
[323422636,1713976240076,-500.0,0.00016438,2]
[323422637,1713976240085,-500.0,0.00016438,2]
[323422638,1713976240095,-500.0,0.00016438,2]
[323422639,1713976240104,-500.0,0.00016438,2]
[323422640,1713976240113,-500.0,0.00016438,2]
[323422641,1713976240124,-478.12,0.00016438,2]
[323422642,1713976240133,-501.36285965,0.00016438,2]
[323422644,1713976240142,-500.0,0.00016438,2]
[323422646,1713976240151,-500.0,0.00016438,2]
[323422648,1713976240161,-493.77022189,0.00016438,2]
[323422650,1713976240170,-500.0,0.00016438,2]
[323422652,1713976240179,-500.0,0.00016438,2]
[323422654,1713976240188,-500.0,0.00016438,2]
[323422655,1713976240197,-500.0,0.00016438,2]
[323422667,1713976240352,-1963.58,0.00016438,2]
[323422668,1713976240363,-500.0,0.00016438,2]
[323422669,1713976240376,-500.0,0.00016438,2]
[323422670,1713976240386,-500.0,0.00016438,2]
[323422671,1713976240396,-1655.34,0.00016438,2]
[323422672,1713976240406,-500.0,0.00016438,2]
[323422673,1713976240416,-620.35594302,0.00016438,2]
[323422675,1713976240425,-509.54472222,0.00016438,2]
[323422677,1713976240436,-500.0,0.00016438,2]
[323422678,1713976240446,-500.84507688,0.00016438,2]
[323422680,1713976240454,-1744.46,0.00016438,2]
[323422682,1713976240463,-1209.51,0.00016438,2]
[323422683,1713976240473,-500.0,0.00016438,2]
[323422685,1713976240482,-186.66324189,0.00016438,2]
[323422687,1713976240493,-506.66663132,0.00016438,2]
[323422689,1713976240502,-500.0,0.00016438,2]
[323422691,1713976240512,-500.0,0.00016438,2]
[323422693,1713976240522,-500.0,0.00016438,2]
[323422695,1713976240531,-500.0,0.00016438,2]
[323422697,1713976240541,-310.42600251,0.00016438,2]
[323422699,1713976240551,-500.0,0.00016438,2]
[323422700,1713976240560,-500.0,0.00016438,2]
[323422701,1713976240570,-500.83165613,0.00016438,2]
[323422703,1713976240579,-500.0,0.00016438,2]
[323422705,1713976240590,-882.83,0.00016438,2]
[323422707,1713976240600,-500.0,0.00016438,2]
[323422709,1713976240611,-500.0,0.00016438,2]
[323422711,1713976240621,-500.0,0.00016438,2]
[323422713,1713976240634,-500.0,0.00016438,2]
[323422714,1713976240643,-500.0,0.00016438,2]
[323422717,1713976240653,-500.0,0.00016438,2]
[323422719,1713976240664,-500.0,0.00016438,2]
[323422720,1713976240674,-500.0,0.00016438,2]
[323422723,1713976240685,-500.0,0.00016438,2]
[323422725,1713976240696,-500.0,0.00016438,2]
[323422726,1713976240706,-503.09299643,0.00016438,2]
[323422728,1713976240715,-984.64,0.00016438,2]
[323422731,1713976240725,-982.22,0.00016438,2]
[323422733,1713976240735,-878.02,0.00016438,2]
[323422734,1713976240744,-500.76294847,0.00016438,2]
[323422736,1713976240754,-500.0,0.00016438,2]
[323422738,1713976240764,-500.0,0.00016438,2]
[323422741,1713976240774,-500.0,0.00016438,2]
[323422743,1713976240785,-599.64584797,0.00016438,2]
[323422745,1713976240797,-626.84,0.00016438,2]
[323422746,1713976240808,-500.0,0.00016438,2]
[323422749,1713976240818,-638.78,0.00016438,2]
[323422751,1713976240828,-500.0,0.00016438,2]
[323422752,1713976240838,-502.72103971,0.00016438,2]
[323422755,1713976240849,-500.0,0.00016438,2]
[323422756,1713976240859,-500.0,0.00016438,2]
[323422759,1713976240872,-500.0,0.00016438,2]
[323422760,1713976240888,-501.70168365,0.00016438,2]
[323422763,1713976240899,-500.0,0.00016438,2]
[323422764,1713976240910,-1841.01,0.00016438,2]
[323422767,1713976240920,-522.79,0.00016438,2]
[323422768,1713976240931,-500.0,0.00016438,2]
[323422770,1713976240941,-500.0,0.00016438,2]
[323422772,1713976240951,-500.0,0.00016438,2]
[323422775,1713976240963,-822.61,0.00016438,2]
[323422777,1713976240974,-502.04529994,0.00016438,2]
[323422778,1713976240985,-500.0,0.00016438,2]
[323422780,1713976240996,-500.0,0.00016438,2]
[323422783,1713976241006,-500.0,0.00016438,2]
[323422784,1713976241017,-500.0,0.00016438,2]
[323422786,1713976241027,-500.0,0.00016438,2]
[323422789,1713976241038,-500.0,0.00016438,2]
[323422791,1713976241048,-500.0,0.00016438,2]
[323422793,1713976241057,-500.0,0.00016438,2]
[323422795,1713976241067,-500.0,0.00016438,2]
[323422796,1713976241076,-500.0,0.00016438,2]
[323422798,1713976241086,-1642.42,0.00016438,2]
[323422800,1713976241096,-500.0,0.00016438,2]
[323422802,1713976241106,-500.0,0.00016438,2]
[323422804,1713976241118,-500.0,0.00016438,2]
[323422806,1713976241132,-156.26236391,0.00016438,2]
[323422808,1713976241141,-500.0,0.00016438,2]
[323422810,1713976241152,-500.0,0.00016438,2]
[323422813,1713976241163,-611.79,0.00016438,2]
[323422814,1713976241173,-500.0,0.00016438,2]
[323422816,1713976241183,-615.69,0.00016438,2]
[323422818,1713976241194,-2192.71,0.00016438,2]
[323422821,1713976241204,-500.0,0.00016438,2]
[323422823,1713976241214,-500.0,0.00016438,2]
[323422825,1713976241224,-500.0,0.00016438,2]
[323422827,1713976241235,-500.0,0.00016438,2]
[323422828,1713976241246,-500.0,0.00016438,2]
[323422831,1713976241256,-776.68,0.00016438,2]
[323422833,1713976241267,-530.3,0.00016438,2]
[323422834,1713976241277,-530.3,0.00016438,2]
[323422837,1713976241287,-530.3,0.00016438,2]
[323422839,1713976241297,-530.3,0.00016438,2]
[323422840,1713976241307,-530.3,0.00016438,2]
[323422842,1713976241316,-530.3,0.00016438,2]
[323422845,1713976241327,-530.3,0.00016438,2]
[323422847,1713976241337,-530.3,0.00016438,2]
[323422849,1713976241346,-530.3,0.00016438,2]
[323422851,1713976241355,-530.3,0.00016438,2]
[323422853,1713976241365,-530.3,0.00016438,2]
[323422854,1713976241376,-500.0,0.00016438,2]
[323422857,1713976241386,-530.3,0.00016438,2]
[323422859,1713976241396,-530.3,0.00016438,2]
[323422861,1713976241406,-530.3,0.00016438,2]
[323422862,1713976241416,-530.3,0.00016438,2]
[323422864,1713976241425,-530.3,0.00016438,2]
[323422866,1713976241435,-530.3,0.00016438,2]
[323422868,1713976241443,-530.3,0.00016438,2]
[323422871,1713976241453,-637.46,0.00016438,2]
[323422873,1713976241462,-530.3,0.00016438,2]
[323422875,1713976241471,-530.3,0.00016438,2]
[323422877,1713976241480,-530.3,0.00016438,2]
[323422879,1713976241490,-530.3,0.00016438,2]
[323422881,1713976241499,-530.3,0.00016438,2]
[323422883,1713976241508,-500.0,0.00016438,2]
[323422885,1713976241517,-530.49429339,0.00016438,2]
[323422886,1713976241526,-500.0,0.00016438,2]
[323422889,1713976241536,-500.0,0.00016438,2]
[323422890,1713976241546,-639.1,0.00016438,2]
[323422893,1713976241555,-500.0,0.00016438,2]
[323422895,1713976241565,-500.0,0.00016438,2]
[323422897,1713976241575,-500.0,0.00016438,2]
[323422899,1713976241584,-500.0,0.00016438,2]
[323422901,1713976241593,-500.0,0.00016438,2]
[323422903,1713976241602,-500.0,0.00016438,2]
[323422905,1713976241612,-500.0,0.00016438,2]
[323422907,1713976241622,-998.74,0.00016438,2]
[323422908,1713976241633,-1175.27,0.00016438,2]
[323422911,1713976241643,-204.36487611,0.00016438,2]
[323422913,1713976241652,-500.0,0.00016438,2]
[323422915,1713976241661,-500.0,0.00016438,2]
[323422917,1713976241671,-500.0,0.00016438,2]
[323422919,1713976241680,-500.0,0.00016438,2]
[323422920,1713976241689,-500.0,0.00016438,2]
[323422922,1713976241698,-500.0,0.00016438,2]
[323422924,1713976241708,-619.04352911,0.00016438,2]
[323422927,1713976241718,-500.0,0.00016438,2]
[323422928,1713976241728,-500.0,0.00016438,2]
[323422930,1713976241738,-1783.06,0.00016438,2]
[323422933,1713976241748,-500.0,0.00016438,2]
[323422935,1713976241759,-500.0,0.00016438,2]
[323422936,1713976241770,-500.0,0.00016438,2]
[323422939,1713976241780,-500.0,0.00016438,2]
[323422940,1713976241792,-1113.86,0.00016438,2]
[323422942,1713976241802,-500.0,0.00016438,2]
[323422945,1713976241812,-500.0,0.00016438,2]
[323422947,1713976241822,-500.0,0.00016438,2]
[323422949,1713976241835,-931.24,0.00016438,2]
[323422950,1713976241845,-500.0,0.00016438,2]
[323422953,1713976241857,-2419.79,0.00016438,2]
[323422955,1713976241867,-500.43888082,0.00016438,2]
[323422956,1713976241882,-480.80965386,0.00016438,2]
[323422958,1713976241892,-500.6276836,0.00016438,2]
[323422960,1713976241902,-500.0,0.00016438,2]
[323422963,1713976241913,-500.0,0.00016438,2]
[323422964,1713976241923,-500.0,0.00016438,2]
[323422966,1713976241932,-503.65481323,0.00016438,2]
[323422968,1713976241942,-500.0,0.00016438,2]
[323422971,1713976241952,-1098.08,0.00016438,2]
[323422973,1713976241963,-501.49946375,0.00016438,2]
[323422975,1713976241973,-500.0,0.00016438,2]
[323422977,1713976241983,-745.36,0.00016438,2]
[323422979,1713976241993,-505.84810529,0.00016438,2]
[323422981,1713976242003,-500.0,0.00016438,2]
[323422982,1713976242012,-500.0,0.00016438,2]
[323422984,1713976242022,-500.0,0.00016438,2]
[323422987,1713976242032,-1008.71,0.00016438,2]
[323422988,1713976242042,-507.9712587,0.00016438,2]
[323422990,1713976242051,-1244.51,0.00016438,2]
[323422993,1713976242061,-502.77968063,0.00016438,2]
[323422994,1713976242071,-500.0,0.00016438,2]
[323422996,1713976242081,-500.0,0.00016438,2]
[323422999,1713976242092,-514.86978296,0.00016438,2]
[323423001,1713976242102,-500.6250133,0.00016438,2]
[323423003,1713976242114,-500.0,0.00016438,2]
[323423005,1713976242128,-500.0,0.00016438,2]
[323423007,1713976242138,-500.0,0.00016438,2]
[323423008,1713976242147,-500.0,0.00016438,2]
[323423011,1713976242158,-500.0,0.00016438,2]
[323423012,1713976242167,-500.0,0.00016438,2]
[323423015,1713976242176,-500.0,0.00016438,2]
[323423017,1713976242186,-500.0,0.00016438,2]
[323423018,1713976242195,-500.0,0.00016438,2]
[323423021,1713976242205,-960.3,0.00016438,2]
[323423022,1713976242214,-500.0,0.00016438,2]
[323423024,1713976242223,-560.07598979,0.00016438,2]
[323423026,1713976242234,-500.0,0.00016438,2]
[323423028,1713976242243,-500.0,0.00016438,2]
[323423030,1713976242252,-939.9,0.00016438,2]
[323423032,1713976242261,-500.0,0.00016438,2]
[323423034,1713976242271,-500.0,0.00016438,2]
[323423037,1713976242280,-1480.74,0.00016438,2]
[323423038,1713976242291,-500.0,0.00016438,2]
[323423040,1713976242301,-627.1,0.00016438,2]
[323423042,1713976242310,-500.0,0.00016438,2]
[323423044,1713976242319,-577.06,0.00016438,2]
[323423047,1713976242328,-500.0,0.00016438,2]
[323423050,1713976242337,-500.0,0.00016438,2]
[323423053,1713976242346,-500.0,0.00016438,2]
[323423055,1713976242355,-500.32518761,0.00016438,2]
[323423058,1713976242365,-818.79,0.00016438,2]
[323423062,1713976242378,-1605.56,0.00016438,2]
[323423067,1713976242388,-500.0,0.00016438,2]
[323423070,1713976242397,-500.0,0.00016438,2]
[323423073,1713976242406,-500.0,0.00016438,2]
[323423077,1713976242415,-500.0,0.00016438,2]
[323423081,1713976242425,-1362.57,0.00016438,2]
[323423085,1713976242435,-500.0,0.00016438,2]
[323423088,1713976242444,-1469.62,0.00016438,2]
[323423090,1713976242454,-2175.21,0.00016438,2]
[323423093,1713976242463,-254.89220478,0.00016438,2]
[323423094,1713976242472,-500.0,0.00016438,2]
[323423097,1713976242481,-500.0,0.00016438,2]
[323423100,1713976242490,-500.0,0.00016438,2]
[323423102,1713976242500,-500.0,0.00016438,2]
[323423105,1713976242510,-500.0,0.00016438,2]
[323423106,1713976242520,-522.57,0.00016438,2]
[323423108,1713976242530,-500.0,0.00016438,2]
[323423111,1713976242539,-500.0,0.00016438,2]
[323423113,1713976242548,-500.0,0.00016438,2]
[323423115,1713976242558,-1035.28,0.00016438,2]
[323423117,1713976242567,-920.26,0.00016438,2]
[323423120,1713976242576,-6939.5,0.00016438,2]
[323423123,1713976242585,-500.0,0.00016438,2]
[323423125,1713976242595,-500.0,0.00016438,2]
[323423127,1713976242605,-500.0,0.00016438,2]
[323423129,1713976242614,-1960.03,0.00016438,2]
[323423131,1713976242627,-4954.95,0.00016438,2]
[323423133,1713976242638,-1253.07,0.00016438,2]
[323423134,1713976242647,-18770.67,0.00016438,2]
[323423135,1713976242657,-500.39097742,0.00016438,2]
[323423137,1713976242666,-500.0,0.00016438,2]
[323423139,1713976242675,-629.51,0.00016438,2]
[323423141,1713976242685,-500.0,0.00016438,2]
[323423143,1713976242694,-662.94,0.00016438,2]
[323423145,1713976242703,-500.0,0.00016438,2]
[323423147,1713976242713,-500.0,0.00016438,2]
[323423149,1713976242722,-501.63269683,0.00016438,2]
[323423151,1713976242731,-2682.8,0.00016438,2]
[323423153,1713976242740,-512.31997285,0.00016438,2]
[323423155,1713976242750,-502.60297434,0.00016438,2]
[323423157,1713976242759,-20599.57,0.00016438,2]
[323423159,1713976242768,-500.0,0.00016438,2]
[323423161,1713976242777,-500.0,0.00016438,2]
[323423163,1713976242787,-500.0,0.00016438,2]
[323423165,1713976242798,-500.0,0.00016438,2]
[323423167,1713976242807,-7791.77,0.00016438,2]
[323423169,1713976242816,-500.0,0.00016438,2]
[323423170,1713976242825,-442.11905763,0.00016438,2]
[323423172,1713976242834,-500.0,0.00016438,2]
[323423175,1713976242846,-500.0,0.00016438,2]
[323423176,1713976242855,-1902.47,0.00016438,2]
[323423178,1713976242864,-500.0,0.00016438,2]
[323423180,1713976242879,-500.0,0.00016438,2]
[323423182,1713976242889,-1239.91,0.00016438,2]
[323423184,1713976242898,-500.0,0.00016438,2]
[323423186,1713976242907,-500.0,0.00016438,2]
[323423188,1713976242916,-500.0,0.00016438,2]
[323423190,1713976242926,-500.0,0.00016438,2]
[323423192,1713976242935,-744.14,0.00016438,2]
[323423195,1713976242945,-500.0,0.00016438,2]
[323423197,1713976242954,-500.0,0.00016438,2]
[323423199,1713976242964,-500.0,0.00016438,2]
[323423201,1713976242974,-503.51866596,0.00016438,2]
[323423203,1713976242983,-500.0,0.00016438,2]
[323423205,1713976242993,-500.58805074,0.00016438,2]
[323423207,1713976243002,-952.39,0.00016438,2]
[323423209,1713976243011,-2426.9,0.00016438,2]
[323423211,1713976243020,-669.91,0.00016438,2]
[323423213,1713976243029,-500.0,0.00016438,2]
[323423215,1713976243039,-453.33621322,0.00016438,2]
[323423217,1713976243048,-503.18383865,0.00016438,2]
[323423219,1713976243057,-611.61229877,0.00016438,2]
[323423221,1713976243066,-500.0,0.00016438,2]
[323423223,1713976243075,-749.1,0.00016438,2]
[323423224,1713976243085,-1355.56,0.00016438,2]
[323423227,1713976243094,-500.0,0.00016438,2]
[323423228,1713976243103,-500.0,0.00016438,2]
[323423230,1713976243112,-500.0,0.00016438,2]
[323423232,1713976243122,-20958.66,0.00016438,2]
[323423234,1713976243133,-500.0,0.00016438,2]
[323423236,1713976243143,-595.36,0.00016438,2]
[323423238,1713976243152,-500.0,0.00016438,2]
[323423240,1713976243161,-1610.59,0.00016438,2]
[323423242,1713976243171,-500.0,0.00016438,2]
[323423245,1713976243181,-628.76,0.00016438,2]
[323423247,1713976243190,-613.48,0.00016438,2]
[323423248,1713976243200,-883.66,0.00016438,2]
[323423251,1713976243209,-500.0,0.00016438,2]
[323423253,1713976243218,-500.0,0.00016438,2]
[323423255,1713976243227,-500.0,0.00016438,2]
[323423257,1713976243236,-1144.06,0.00016438,2]
[323423259,1713976243246,-500.0,0.00016438,2]
[323423261,1713976243256,-500.0,0.00016438,2]
[323423263,1713976243265,-500.0,0.00016438,2]
[323423267,1713976243274,-634.36,0.00016438,2]
[323423269,1713976243283,-500.0,0.00016438,2]
[323423273,1713976243292,-500.0,0.00016438,2]
[323423288,1713976243424,-500.0,0.00016438,2]
[323423290,1713976243435,-500.0,0.00016438,2]
[323423292,1713976243445,-500.0,0.00016438,2]
[323423294,1713976243455,-2282.45,0.00016438,2]
[323423296,1713976243464,-6819.29,0.00016438,2]
[323423298,1713976243474,-500.0,0.00016438,2]
[323423300,1713976243483,-500.0,0.00016438,2]
[323423302,1713976243492,-587.8,0.00016438,2]
[323423304,1713976243501,-636.88257817,0.00016438,2]
[323423306,1713976243511,-898.44,0.00016438,2]
[323423308,1713976243520,-2176.27,0.00016438,2]
[323423310,1713976243529,-500.0,0.00016438,2]
[323423312,1713976243538,-609.68729219,0.00016438,2]
[323423314,1713976243548,-3467.77,0.00016438,2]
[323423316,1713976243556,-500.0,0.00016438,2]
[323423318,1713976243566,-500.0,0.00016438,2]
[323423320,1713976243575,-500.0,0.00016438,2]
[323423322,1713976243584,-500.0,0.00016438,2]
[323423324,1713976243594,-500.0,0.00016438,2]
[323423326,1713976243603,-883.68,0.00016438,2]
[323423328,1713976243612,-500.0,0.00016438,2]
[323423330,1713976243621,-500.0,0.00016438,2]
[323423332,1713976243632,-500.0,0.00016438,2]
[323423334,1713976243642,-6675.69,0.00016438,2]
[323423336,1713976243651,-804.75,0.00016438,2]
[323423338,1713976243660,-500.0,0.00016438,2]
[323423340,1713976243669,-500.0,0.00016438,2]
[323423342,1713976243678,-9636.11,0.00016438,2]
[323423344,1713976243687,-500.0,0.00016438,2]
[323423346,1713976243696,-500.0,0.00016438,2]
[323423348,1713976243705,-500.0,0.00016438,2]
[323423350,1713976243714,-500.0,0.00016438,2]
[323423352,1713976243724,-500.0,0.00016438,2]
[323423354,1713976243733,-500.0,0.00016438,2]
[323423356,1713976243742,-500.52186241,0.00016438,2]
[323423358,1713976243752,-1093.45,0.00016438,2]
[323423360,1713976243761,-187.22870139,0.00016438,2]
[323423362,1713976243770,-500.0,0.00016438,2]
[323423365,1713976243780,-3678.5,0.00016438,2]
[323423367,1713976243789,-500.0,0.00016438,2]
[323423368,1713976243801,-500.0,0.00016438,2]
[323423370,1713976243810,-503.43849542,0.00016438,2]
[323423372,1713976243819,-806.91,0.00016438,2]
[323423374,1713976243828,-500.0,0.00016438,2]
[323423376,1713976243838,-500.0,0.00016438,2]
[323423378,1713976243848,-500.0,0.00016438,2]
[323423381,1713976243857,-500.0,0.00016438,2]
[323423382,1713976243866,-500.0,0.00016438,2]
[323423384,1713976243878,-500.0,0.00016438,2]
[323423386,1713976243888,-500.0,0.00016438,2]
[323423388,1713976243897,-449.43301271,0.00016438,2]
[323423391,1713976243907,-500.0,0.00016438,2]
[323423392,1713976243916,-500.0,0.00016438,2]
[323423395,1713976243926,-500.3042794,0.00016438,2]
[323423397,1713976243936,-500.0,0.00016438,2]
[323423399,1713976243946,-275.93619471,0.00016438,2]
[323423400,1713976243955,-200.09147316,0.00016438,2]
[323423402,1713976243965,-155.35508982,0.00016438,2]
[323423404,1713976243975,-500.0,0.00016438,2]
[323423407,1713976243986,-1314.64,0.00016438,2]
[323423409,1713976243995,-500.0,0.00016438,2]
[323423411,1713976244004,-500.0,0.00016438,2]
[323423413,1713976244013,-7426.29,0.00016438,2]
[323423415,1713976244022,-500.0,0.00016438,2]
[323423417,1713976244031,-500.0,0.00016438,2]
[323423419,1713976244041,-549.95,0.00016438,2]
[323423421,1713976244049,-549.95,0.00016438,2]
[323423423,1713976244058,-549.95,0.00016438,2]
[323423425,1713976244068,-549.95,0.00016438,2]
[323423426,1713976244077,-549.95,0.00016438,2]
[323423428,1713976244086,-549.95,0.00016438,2]
[323423431,1713976244095,-549.95,0.00016438,2]
[323423433,1713976244104,-549.95,0.00016438,2]
[323423435,1713976244113,-549.95,0.00016438,2]
[323423437,1713976244123,-549.95,0.00016438,2]
[323423439,1713976244135,-549.95,0.00016438,2]
[323423440,1713976244149,-549.95,0.00016438,2]
[323423443,1713976244159,-549.95,0.00016438,2]
[323423444,1713976244169,-549.95,0.00016438,2]
[323423446,1713976244179,-549.95,0.00016438,2]
[323423448,1713976244188,-549.95,0.00016438,2]
[323423450,1713976244197,-535.1087596,0.00016438,2]
[323423452,1713976244206,-549.95,0.00016438,2]
[323423454,1713976244216,-549.95,0.00016438,2]
[323423456,1713976244225,-549.95,0.00016438,2]
[323423458,1713976244235,-3073.94,0.00016438,2]
[323423460,1713976244244,-549.95,0.00016438,2]
[323423462,1713976244254,-1294.3,0.00016438,2]
[323423465,1713976244264,-500.0,0.00016438,2]
[323423466,1713976244274,-549.95,0.00016438,2]
[323423468,1713976244283,-549.95,0.00016438,2]
[323423470,1713976244292,-549.95,0.00016438,2]
[323423472,1713976244301,-550.17971077,0.00016438,2]
[323423475,1713976244311,-500.0,0.00016438,2]
[323423477,1713976244320,-502.90736301,0.00016438,2]
[323423479,1713976244330,-432.75212267,0.00016438,2]
[323423480,1713976244339,-501.32989006,0.00016438,2]
[323423483,1713976244348,-500.0,0.00016438,2]
[323423485,1713976244357,-500.0,0.00016438,2]
[323423486,1713976244366,-500.0,0.00016438,2]
[323423488,1713976244378,-922.41,0.00016438,2]
[323423490,1713976244387,-501.55250152,0.00016438,2]
[323423493,1713976244397,-500.0,0.00016438,2]
[323423495,1713976244406,-500.0,0.00016438,2]
[323423497,1713976244415,-500.0,0.00016438,2]
[323423499,1713976244425,-500.0,0.00016438,2]
[323423501,1713976244435,-500.0,0.00016438,2]
[323423503,1713976244444,-500.9898219,0.00016438,2]
[323423505,1713976244453,-496.38210146,0.00016438,2]
[323423507,1713976244462,-14662.47,0.00016438,2]
[323423509,1713976244471,-500.0,0.00016438,2]
[323423511,1713976244480,-500.0,0.00016438,2]
[323423513,1713976244490,-500.0,0.00016438,2]
[323423515,1713976244499,-562.55,0.00016438,2]
[323423516,1713976244508,-500.0,0.00016438,2]
[323423519,1713976244518,-500.0,0.00016438,2]
[323423521,1713976244527,-400.9379718,0.00016438,2]
[323423523,1713976244537,-856.79413,0.00016439,2]
[323423524,1713976244546,-929.654291,0.00016439,2]
[323423526,1713976244556,-2469.976829,0.00016439,2]
[323423528,1713976244564,-2788.962874,0.00016439,2]
[323423530,1713976244574,-929.654291,0.00016439,2]
[323423532,1713976244582,-856.79413,0.00016439,2]
[323423534,1713976244592,-272.61360926,0.000165,2]
[323423536,1713976244601,-856.79413,0.00016642,2]
[323423538,1713976244610,-929.654291,0.00016642,2]
[323423540,1713976244619,-2469.976829,0.00016642,2]
[323423542,1713976244631,-2788.962874,0.00016642,2]
[323423544,1713976244641,-929.654291,0.00016642,2]
[323423546,1713976244650,-856.79413,0.00016642,2]
[323423548,1713976244660,-1016.53700423,0.00016683,2]
[323423550,1713976244670,-500.0,0.00016712,2]
[323423553,1713976244680,-500.0,0.00016712,2]
[323423554,1713976244690,-500.0,0.00016712,2]
[323423557,1713976244699,-500.80733792,0.00016712,2]
[323423559,1713976244709,-500.0,0.00016712,2]
[323423561,1713976244719,-2301.59,0.00016712,2]
[323423563,1713976244729,-500.0,0.00016712,2]
[323423565,1713976244739,-500.0,0.00016712,2]
[323423567,1713976244749,-500.0,0.00016712,2]
[323423569,1713976244760,-500.0,0.00016712,2]
[323423571,1713976244770,-500.0,0.00016712,2]
[323423573,1713976244781,-500.0,0.00016712,2]
[323423575,1713976244795,-500.0,0.00016712,2]
[323423577,1713976244808,-1012.75,0.00016712,2]
[323423579,1713976244819,-500.0,0.00016712,2]
[323423581,1713976244830,-500.0,0.00016712,2]
[323423583,1713976244842,-1065.98,0.00016712,2]
[323423585,1713976244852,-500.0,0.00016712,2]
[323423587,1713976244862,-500.0,0.00016712,2]
[323423589,1713976244873,-500.0,0.00016712,2]
[323423591,1713976244885,-1324.66,0.00016712,2]
[323423593,1713976244894,-614.97,0.00016712,2]
[323423595,1713976244905,-500.0,0.00016712,2]
[323423596,1713976244914,-500.0,0.00016712,2]
[323423598,1713976244926,-171.97717731,0.00016712,2]
[323423600,1713976244937,-500.0,0.00016712,2]
[323423603,1713976244947,-500.0,0.00016712,2]
[323423605,1713976244958,-500.0,0.00016712,2]
[323423606,1713976244969,-569.74084052,0.00016712,2]
[323423608,1713976244980,-720.48,0.00016712,2]
[323423611,1713976244990,-500.0,0.00016712,2]
[323423613,1713976245000,-500.0,0.00016712,2]
[323423614,1713976245010,-500.40325805,0.00016712,2]
[323423616,1713976245020,-515.67267276,0.00016712,2]
[323423619,1713976245031,-789.5,0.00016712,2]
[323423621,1713976245041,-500.0,0.00016712,2]
[323423623,1713976245052,-500.0,0.00016712,2]
[323423625,1713976245063,-500.0,0.00016712,2]
[323423626,1713976245074,-500.0,0.00016712,2]
[323423628,1713976245084,-500.0,0.00016712,2]
[323423630,1713976245094,-500.0,0.00016712,2]
[323423633,1713976245105,-500.0,0.00016712,2]
[323423634,1713976245116,-500.0,0.00016712,2]